fUSD/lending_fUSD_20251112
["ID","MTS","AMOUNT","RATE_DAILY","PERIOD"]
[393706159,1762937438508,-76497.02472379,0.00038,2]
[393706161,1762937438518,-455.0,0.00038,30]
[393706163,1762937438528,-873.42724838,0.00038,2]
[393706165,1762937438538,-840.382705,0.00038011,2]
[393706167,1762937438548,-200.0,0.0003802,2]
[393706169,1762937438557,-6378.31527203,0.00038048,3]
[393706171,1762937438567,-293.8,0.00038049,2]
[393706173,1762937438579,-999.0,0.00038057,3]
[393706175,1762937438589,-1949.95919372,0.00038089,2]
[393706177,1762937438600,-1116.30638275,0.00038089,2]
[393706179,1762937438610,-1179.65179145,0.000381,2]
[393706181,1762937438621,-1200.0,0.00038105,7]
[393706183,1762937438631,-153.59012997,0.00038137,30]
[393706185,1762937438641,-250.0,0.00038164,2]
[393706187,1762937438651,-168.0,0.00038182,7]
[393706189,1762937438662,-2000.0,0.00038201,120]
[393706191,1762937438672,-1949.95919372,0.00038233,2]
[393706193,1762937438682,-1116.30638275,0.00038234,2]
[393706195,1762937438694,-6378.31527203,0.00038249,3]
[393706197,1762937438703,-19134.9458161,0.00038259,3]
[393706199,1762937438713,-1000.0,0.00038269,2]
[393706201,1762937438724,-30167.4482,0.00038269,2]
[393706203,1762937438734,-1000.0,0.00038269,120]
[393706205,1762937438743,-153.59012997,0.00038329,30]
[393706207,1762937438753,-200.0,0.0003835,2]
[393706209,1762937438762,-1000.0,0.00038356,120]
[393706211,1762937438772,-12756.6305441,0.0003836,3]
[393706213,1762937438782,-150.0,0.00038362,7]
[393706215,1762937438793,-16713.51,0.0003837,2]
[393706217,1762937438803,-1949.95919372,0.00038378,2]
[393706219,1762937438813,-1116.30638275,0.00038378,2]
[393706221,1762937438823,-800.0,0.00038379,7]
[393706223,1762937438833,-500.0,0.00038379,7]
[393706225,1762937438843,-1000.0,0.00038394,120]
[393706227,1762937438853,-500.0,0.000384,14]
[393706229,1762937438863,-6378.31527203,0.00038402,3]
[393706231,1762937438874,-417.0,0.00038429,120]
[393706233,1762937438884,-1000.0,0.00038431,120]
[393706235,1762937438894,-277.9739007,0.00038436,10]
[393706237,1762937438905,-150.0,0.00038436,10]
[393706240,1762937438916,-150.0,0.00038436,2]
[393706242,1762937438926,-150.0,0.00038436,10]
[393706244,1762937438935,-150.0,0.00038436,10]
[393706246,1762937438945,-233.29,0.00038447,8]
[393706248,1762937438955,-1000.0,0.00038468,120]
[393706250,1762937438965,-1000.0,0.000385,120]
[393706252,1762937438975,-1100.0,0.000385,14]
[393706254,1762937438986,-1000.0,0.00038506,120]
[393706256,1762937438996,-1116.30638275,0.00038523,2]
[393706258,1762937439006,-1000.0,0.00038543,120]
[393706260,1762937439016,-153.59012997,0.00038548,30]
[393706262,1762937439026,-150.0,0.00038555,120]
[393706264,1762937439036,-6378.31527203,0.00038563,3]
[393706266,1762937439045,-150.0,0.00038573,10]
[393706268,1762937439055,-150.0,0.00038573,10]
[393706270,1762937439065,-500.0,0.00038573,10]
[393706273,1762937439086,-500.0,0.00038573,10]
[393706275,1762937439097,-150.0,0.00038573,60]
[393706277,1762937439108,-150.0,0.00038573,10]
[393706279,1762937439119,-150.0,0.00038573,2]
[393706281,1762937439131,-668.0,0.00038573,10]
[393706283,1762937439141,-500.0,0.00038573,120]
[393706286,1762937439151,-150.0,0.00038573,60]
[393706288,1762937439163,-152.0,0.00038575,24]
[393706290,1762937439174,-1000.0,0.0003858,120]
[393706292,1762937439185,-1504.6564,0.0003859,2]
[393706294,1762937439194,-1600.0,0.000386,14]
[393706296,1762937439205,-1000.0,0.00038618,120]
[393706298,1762937439215,-455.0,0.0003863,90]
[393706300,1762937439225,-1000.0,0.00038655,120]
[393706301,1762937439235,-500.0,0.00038659,15]
[393706302,1762937439246,-241.01393139,0.00038659,15]
[393706303,1762937439257,-304.98641733,0.00038659,15]
[393706304,1762937439267,-483.6277867,0.00038659,15]
[393706305,1762937439278,-295.1315023,0.00038659,15]
[393706306,1762937439288,-1116.30638275,0.00038667,2]
[393706307,1762937439299,-284.7786349,0.00038668,7]
[393706308,1762937439310,-152.0,0.00038668,7]
[393706310,1762937439320,-152.0,0.00038668,7]
[393706311,1762937439331,-152.0,0.00038668,7]
[393706312,1762937439342,-152.0,0.00038668,7]
[393706313,1762937439353,-152.0,0.00038668,7]
[393706314,1762937439363,-152.0,0.00038668,7]
[393706315,1762937439373,-152.0,0.00038668,7]
[393706316,1762937439384,-827.0,0.00038668,7]
[393706317,1762937439394,-290.0009825,0.00038668,7]
[393706318,1762937439405,-827.0,0.00038668,7]
[393706319,1762937439416,-827.0,0.00038668,7]
[393706320,1762937439426,-827.0,0.00038668,7]
[393706321,1762937439437,-827.0,0.00038668,7]
[393706322,1762937439447,-827.0,0.00038668,7]
[393706323,1762937439457,-888.12140927,0.00038668,7]
[393706324,1762937439467,-1683.0,0.00038675,5]
[393706325,1762937439478,-6378.31527203,0.00038677,3]
[393706326,1762937439488,-200.0,0.00038685,28]
[393706327,1762937439498,-6378.31527203,0.0003869,3]
[393706328,1762937439508,-1000.0,0.00038692,120]
[393706329,1762937439518,-6378.31527203,0.000387,3]
[393706330,1762937439528,-500.0,0.000387,120]
[393706331,1762937439539,-500.0,0.000387,120]
[393706332,1762937439548,-500.0,0.000387,120]
[393706333,1762937439558,-500.0,0.000387,120]
[393706334,1762937439567,-500.0,0.000387,120]
[393706335,1762937439580,-500.0,0.000387,120]
[393706336,1762937439591,-500.0,0.000387,120]
[393706337,1762937439600,-500.0,0.000387,120]
[393706338,1762937439610,-500.0,0.000387,120]
[393706339,1762937439621,-500.0,0.000387,120]
[393706340,1762937439630,-500.0,0.000387,120]
[393706341,1762937439640,-500.0,0.000387,120]
[393706342,1762937439652,-500.0,0.000387,120]
[393706343,1762937439662,-500.0,0.000387,120]
[393706344,1762937439671,-500.0,0.000387,120]
[393706345,1762937439681,-500.0,0.000387,120]
[393706346,1762937439690,-500.0,0.000387,120]
[393706347,1762937439700,-500.0,0.000387,120]
[393706348,1762937439709,-500.0,0.000387,120]
[393706349,1762937439718,-500.0,0.000387,120]
[393706350,1762937439728,-1000.0,0.000387,120]
[393706351,1762937439737,-1000.0,0.000387,120]
[393706352,1762937439747,-2200.0,0.000387,14]
[393706353,1762937439756,-168.0,0.00038705,2]
[393706354,1762937439766,-168.314595,0.0003871,10]
[393706355,1762937439775,-200.0,0.0003871,10]
[393706356,1762937439784,-500.0,0.0003871,10]
[393706357,1762937439795,-500.0,0.0003871,10]
[393706358,1762937439804,-150.0,0.0003871,60]
[393706359,1762937439814,-150.0,0.0003871,10]
[393706360,1762937439824,-150.0,0.0003871,2]
[393706361,1762937439834,-668.0,0.0003871,10]
[393706362,1762937439843,-613.7947703,0.0003871,120]
[393706363,1762937439853,-150.0,0.0003871,60]
[393706364,1762937439862,-1000.0,0.0003873,120]
[393706365,1762937439872,-200.0,0.00038733,2]
[393706366,1762937439882,-397.0,0.00038735,2]
[393706367,1762937439891,-500.0,0.00038737,30]
[393706368,1762937439902,-166.66,0.00038752,2]
[393706369,1762937439912,-1000.0,0.00038767,120]
[393706370,1762937439921,-153.59012997,0.00038767,30]
[393706371,1762937439931,-6378.31527203,0.00038768,3]
[393706372,1762937439941,-500.0,0.00038772,30]
[393706373,1762937439950,-12756.6305441,0.00038778,3]
[393706374,1762937439959,-6378.31527203,0.0003878,3]
[393706375,1762937439968,-151.0,0.00038788,120]
[393706376,1762937439977,-151.0,0.00038788,120]
[393706377,1762937439987,-151.0,0.00038788,120]
[393706378,1762937439997,-151.0,0.00038788,120]
[393706379,1762937440007,-151.0,0.00038788,45]
[393706380,1762937440018,-151.0,0.00038788,120]
[393706381,1762937440029,-3940.0,0.00038788,120]
[393706382,1762937440039,-151.0,0.00038788,120]
[393706383,1762937440048,-579.595,0.00038788,2]
[393706384,1762937440058,-1320.709,0.00038788,2]
[393706385,1762937440067,-613.497,0.00038788,2]
[393706386,1762937440078,-3427.0,0.00038788,2]
[393706387,1762937440087,-1597.0,0.00038788,2]
[393706388,1762937440098,-821.0,0.00038788,2]
[393706389,1762937440108,-1274.0,0.00038788,2]
[393706390,1762937440118,-813.0,0.00038788,2]
[393706391,1762937440127,-5505.332,0.00038788,2]
[393706392,1762937440137,-560.0,0.00038788,2]
[393706393,1762937440146,-6514.987,0.00038788,2]
[393706394,1762937440155,-2143.0,0.00038788,2]
[393706395,1762937440165,-200.32,0.00038795,30]
[393706396,1762937440174,-1000.0,0.000388,120]
[393706397,1762937440184,-2700.0,0.000388,14]
[393706398,1762937440195,-150.54399371,0.000388,120]
[393706399,1762937440204,-150.54399367,0.000388,120]
[393706400,1762937440214,-150.54399367,0.000388,120]
[393706401,1762937440223,-150.54399367,0.000388,120]
[393706402,1762937440233,-150.54399367,0.000388,120]
[393706403,1762937440242,-150.54399367,0.000388,120]
[393706404,1762937440251,-150.54399367,0.000388,120]
[393706405,1762937440260,-150.54399367,0.000388,120]
[393706406,1762937440270,-150.54399367,0.000388,120]
[393706407,1762937440279,-150.54399367,0.000388,120]
[393706408,1762937440288,-150.54399367,0.000388,120]
[393706409,1762937440297,-150.54399367,0.000388,120]
[393706410,1762937440306,-150.54399367,0.000388,120]
[393706411,1762937440316,-150.54399367,0.000388,120]
[393706412,1762937440325,-150.54399367,0.000388,120]
[393706413,1762937440334,-151.0,0.000388,30]
[393706414,1762937440345,-1000.0,0.00038804,120]
[393706415,1762937440354,-150.54399367,0.00038809,120]
[393706416,1762937440364,-1116.30638275,0.00038812,2]
[393706417,1762937440373,-357.9294872,0.00038831,2]
[393706418,1762937440383,-1000.0,0.00038842,120]
[393706419,1762937440392,-6378.31527203,0.00038847,3]
[393706420,1762937440402,-350.0,0.00038847,10]
[393706421,1762937440411,-350.0,0.00038847,10]
[393706422,1762937440421,-243.29876332,0.00038847,60]
[393706423,1762937440432,-200.0,0.00038847,10]
[393706424,1762937440442,-150.0,0.00038847,2]
[393706425,1762937440452,-668.0,0.00038847,10]
[393706426,1762937440461,-166.42500665,0.00038857,2]
[393706427,1762937440471,-416.0,0.00038857,2]
[393706428,1762937440480,-200.0,0.00038865,20]
[393706429,1762937440489,-150.54399367,0.00038876,120]
[393706430,1762937440499,-1000.0,0.00038879,120]
[393706431,1762937440508,-2306.9475,0.00038888,30]
[393706432,1762937440518,-1019.5405,0.00038899,2]
[393706433,1762937440528,-500.0,0.000389,14]
[393706434,1762937440539,-6378.31527203,0.000389,3]
[393706435,1762937440549,-212.0,0.0003891,30]
[393706436,1762937440559,-1000.0,0.00038917,120]
[393706437,1762937440569,-151.0,0.00038925,120]
[393706438,1762937440582,-151.0,0.00038925,120]
[393706439,1762937440592,-168.98989,0.00038925,120]
[393706440,1762937440602,-1200.0,0.00038927,7]
[393706441,1762937440612,-150.54399367,0.00038943,120]
[393706442,1762937440622,-1000.0,0.00038954,120]
[393706443,1762937440632,-150.0,0.00038955,7]
[393706444,1762937440641,-1116.30638275,0.00038956,2]
[393706445,1762937440652,-153.59012997,0.00038959,30]
[393706446,1762937440661,-6378.31527203,0.0003896,3]
[393706447,1762937440671,-300.0,0.00038961,2]
[393706448,1762937440681,-151.0,0.0003897,120]
[393706449,1762937440690,-151.0,0.0003897,120]
[393706450,1762937440700,-6378.31527203,0.0003897,3]
[393706451,1762937440709,-1000.0,0.00038971,7]
[393706452,1762937440718,-150.0,0.00038972,7]
[393706453,1762937440728,-38269.8916322,0.0003898,3]
[393706454,1762937440739,-151.0,0.00038981,120]
[393706455,1762937440749,-159.002243,0.00038981,120]
[393706456,1762937440758,-6378.31527203,0.00038981,3]
[393706457,1762937440768,-150.0,0.00038984,2]
[393706458,1762937440778,-668.0,0.00038984,10]
[393706459,1762937440787,-499.296404,0.0003899,120]
[393706460,1762937440797,-499.296404,0.0003899,120]
[393706461,1762937440807,-499.296404,0.0003899,120]
[393706463,1762937440817,-499.296404,0.0003899,120]
[393706464,1762937440826,-70161.4679923,0.0003899,3]
[393706465,1762937440836,-281.07251,0.0003899,120]
[393706466,1762937440847,-151.0,0.0003899,120]
[393706467,1762937440856,-151.0,0.0003899,120]
[393706468,1762937441040,-151.0,0.0003899,120]
[393706469,1762937441051,-151.0,0.0003899,45]
[393706470,1762937441060,-151.0,0.0003899,120]
[393706471,1762937441069,-1000.0,0.00038991,120]
[393706472,1762937441079,-1000.0,0.00038994,7]
[393706473,1762937441089,-233.29,0.00038995,9]
[393706474,1762937441100,-1098.05342991,0.00038999,30]
[393706475,1762937441111,-5000.0,0.00039,2]
[393706476,1762937441120,-5000.0,0.00039,2]
[393706477,1762937441130,-5000.0,0.00039,2]
[393706478,1762937441139,-5000.0,0.00039,2]
[393706479,1762937441149,-5000.0,0.00039,2]
[393706480,1762937441159,-5000.0,0.00039,90]
[393706481,1762937441169,-5000.0,0.00039,90]
[393706482,1762937441178,-5000.0,0.00039,90]
[393706483,1762937441187,-5000.0,0.00039,90]
[393706484,1762937441197,-5000.0,0.00039,90]
[393706485,1762937441206,-5000.0,0.00039,90]
[393706486,1762937441215,-5000.0,0.00039,90]
[393706487,1762937441225,-5000.0,0.00039,90]
[393706488,1762937441234,-5000.0,0.00039,90]
[393706489,1762937441244,-5000.0,0.00039,90]
[393706490,1762937441253,-518.57,0.00039,90]
[393706491,1762937441262,-1000.0,0.00039,120]
[393706492,1762937441271,-1000.0,0.00039,120]
[393706493,1762937441281,-187.40772,0.00039,120]
[393706494,1762937441290,-75097.8019514,0.00039,2]
[393706495,1762937441299,-153.938725,0.00039,120]
[393706496,1762937441308,-153.386069,0.00039,120]
[393706497,1762937441318,-151.956882,0.00039,120]
[393706498,1762937441329,-154.201287,0.00039,120]
[393706499,1762937441338,-151.0,0.00039,120]
[393706500,1762937441347,-6020.5399042,0.00039,7]
[393706501,1762937441357,-499.296404,0.00039,120]
[393706502,1762937441367,-499.296404,0.00039,120]
[393706503,1762937441376,-499.296404,0.00039,120]
[393706504,1762937441386,-151.0,0.00039,120]
[393706505,1762937441395,-499.296404,0.00039,120]
[393706506,1762937441404,-151.0,0.00039,120]
[393706507,1762937441414,-151.0,0.00039,120]
[393706508,1762937441423,-151.0,0.00039,120]
[393706509,1762937441433,-151.0,0.00039,120]
[393706510,1762937441443,-1573.246792,0.00039,32]
[393706511,1762937441452,-151.0,0.00039,120]
[393706512,1762937441461,-151.0,0.00039,120]
[393706513,1762937441471,-151.0,0.00039,120]
[393706514,1762937441480,-151.0,0.00039,45]
[393706515,1762937441489,-151.0,0.00039,120]
[393706516,1762937441499,-150.54399367,0.00039011,120]
[393706517,1762937441508,-1000.0,0.00039011,7]
[393706518,1762937441517,-150.0,0.00039013,7]
[393706519,1762937441527,-1000.0,0.00039029,120]
[393706520,1762937441536,-1000.0,0.00039066,120]
[393706521,1762937441546,-161.72481843,0.00039078,12]
[393706522,1762937441555,-440.74378586,0.00039078,2]
[393706523,1762937441565,-481.19607756,0.00039078,2]
[393706524,1762937441579,-164.48213506,0.00039078,2]
[393706525,1762937441588,-255.48791897,0.00039078,7]
[393706526,1762937441597,-150.54399367,0.00039078,120]
[393706527,1762937441607,-345.77507279,0.0003909,2]
[393706528,1762937441616,-1000.0,0.000391,120]
[393706529,1762937441626,-150.0,0.000391,15]
[393706530,1762937441635,-771.79825,0.000391,29]
[393706531,1762937441646,-198.0,0.000391,120]
[393706532,1762937441656,-154.00686309,0.000391,120]
[393706533,1762937441665,-154.00686309,0.000391,120]
[393706534,1762937441675,-172.98465874,0.000391,120]
[393706535,1762937441684,-172.98465874,0.000391,120]
[393706536,1762937441693,-172.98465874,0.000391,120]
[393706537,1762937441703,-172.98465874,0.000391,120]
[393706538,1762937441712,-172.98465874,0.000391,120]
[393706539,1762937441723,-172.98465874,0.000391,120]
[393706540,1762937441732,-172.98465874,0.000391,120]
[393706541,1762937441742,-172.98465874,0.000391,120]
[393706542,1762937441751,-172.98465874,0.000391,120]
[393706543,1762937441760,-172.98465874,0.000391,120]
[393706544,1762937441770,-172.98465874,0.000391,120]
[393706545,1762937441779,-172.98465874,0.000391,120]
[393706546,1762937441788,-172.98465874,0.000391,120]
[393706547,1762937441798,-172.98465874,0.000391,120]
[393706548,1762937441808,-172.98465874,0.000391,120]
[393706549,1762937441817,-172.98465874,0.000391,120]
[393706550,1762937441826,-172.98465874,0.000391,120]
[393706551,1762937441836,-172.98465874,0.000391,120]
[393706552,1762937441845,-172.98465874,0.000391,120]
[393706553,1762937441855,-172.98,0.000391,120]
[393706554,1762937441865,-403.6308704,0.000391,120]
[393706555,1762937441875,-403.6308704,0.000391,120]
[393706556,1762937441885,-403.6308704,0.000391,120]
[393706557,1762937441895,-403.6308704,0.000391,120]
[393706558,1762937441904,-403.6308704,0.000391,120]
[393706559,1762937441913,-403.6308704,0.000391,120]
[393706560,1762937441923,-403.6308704,0.000391,120]
[393706561,1762937441932,-403.6308704,0.000391,120]
[393706562,1762937441941,-403.6308704,0.000391,120]
[393706563,1762937441950,-403.6308704,0.000391,120]
[393706564,1762937441959,-403.6308704,0.000391,120]
[393706565,1762937441968,-403.6308704,0.000391,120]
[393706566,1762937441978,-403.6308704,0.000391,120]
[393706567,1762937441987,-403.6308704,0.000391,120]
[393706568,1762937441996,-403.6308704,0.000391,120]
[393706569,1762937442006,-403.6308704,0.000391,120]
[393706570,1762937442015,-403.6308704,0.000391,120]
[393706571,1762937442024,-271.55407968,0.000391,120]
[393706572,1762937442034,-271.55407968,0.000391,120]
[393706573,1762937442044,-271.55407968,0.000391,120]
[393706574,1762937442053,-271.55407968,0.000391,120]
[393706575,1762937442063,-271.55407968,0.000391,120]
[393706576,1762937442071,-271.55407968,0.000391,120]
[393706577,1762937442081,-271.55407968,0.000391,120]
[393706578,1762937442091,-271.55407968,0.000391,120]
[393706579,1762937442100,-271.55407968,0.000391,120]
[393706580,1762937442109,-271.55407968,0.000391,120]
[393706581,1762937442118,-271.55407968,0.000391,120]
[393706582,1762937442132,-271.55407968,0.000391,120]
[393706583,1762937442142,-271.55407968,0.000391,120]
[393706584,1762937442151,-271.55407968,0.000391,120]
[393706585,1762937442160,-271.55407968,0.000391,120]
[393706586,1762937442170,-271.55407968,0.000391,120]
[393706587,1762937442179,-271.55407968,0.000391,120]
[393706588,1762937442188,-271.55407968,0.000391,120]
[393706589,1762937442197,-271.55407968,0.000391,120]
[393706590,1762937442206,-271.55,0.000391,120]
[393706591,1762937442216,-633.62618591,0.000391,120]
[393706592,1762937442226,-633.62618591,0.000391,120]
[393706593,1762937442236,-633.62618591,0.000391,120]
[393706594,1762937442245,-633.62618591,0.000391,120]
[393706595,1762937442254,-633.62618591,0.000391,120]
[393706596,1762937442265,-633.62618591,0.000391,120]
[393706597,1762937442274,-633.62618591,0.000391,120]
[393706598,1762937442283,-633.62618591,0.000391,120]
[393706599,1762937442293,-633.62618591,0.000391,120]
[393706600,1762937442303,-633.62618591,0.000391,120]
[393706601,1762937442312,-633.62618591,0.000391,120]
[393706602,1762937442321,-633.62618591,0.000391,120]
[393706603,1762937442330,-633.62618591,0.000391,120]
[393706604,1762937442340,-633.62618591,0.000391,120]
[393706605,1762937442349,-633.62618591,0.000391,120]
[393706606,1762937442359,-633.62618591,0.000391,120]
[393706607,1762937442368,-633.62618591,0.000391,120]
[393706608,1762937442378,-1116.30638275,0.00039101,2]
[393706609,1762937442387,-1000.0,0.00039103,120]
[393706610,1762937442396,-219.45729136,0.00039115,7]
[393706611,1762937442405,-255.79899462,0.00039121,2]
[393706612,1762937442415,-668.0,0.00039121,10]
[393706613,1762937442424,-1000.0,0.00039125,7]
[393706614,1762937442433,-354.99943,0.00039129,30]
[393706615,1762937442443,-857.11836138,0.00039131,30]
[393706616,1762937442452,-1000.0,0.00039141,120]
[393706617,1762937442462,-152.2252206,0.00039145,7]
[393706618,1762937442471,-1000.0,0.0003915,7]
[393706619,1762937442480,-874.04,0.00039155,5]
[393706620,1762937442489,-151.0,0.00039158,120]
[393706621,1762937442499,-1098.05342992,0.00039167,30]
[393706622,1762937442509,-5795.23427658,0.00039168,90]
[393706623,1762937442519,-151.0,0.00039168,120]
[393706624,1762937442528,-151.0,0.00039168,120]
[393706625,1762937442537,-180.54548,0.00039168,120]
[393706626,1762937442547,-151.0,0.00039168,120]
[393706627,1762937442557,-345.77507279,0.00039168,2]
[393706628,1762937442566,-7554.7613372,0.00039169,2]
[393706629,1762937442577,-1682.28113152,0.0003917,2]
[393706630,1762937442587,-159.84209483,0.00039173,5]
[393706631,1762937442596,-1000.0,0.00039175,7]
[393706632,1762937442605,-3691.04283804,0.00039176,120]
[393706633,1762937442615,-999.0,0.00039177,120]
[393706634,1762937442626,-207.61757181,0.00039177,120]
[393706635,1762937442636,-1000.0,0.00039178,2]
[393706636,1762937442646,-1000.0,0.00039178,2]
[393706637,1762937442656,-751.8,0.00039178,20]
[393706638,1762937442665,-500.0,0.00039178,20]
[393706639,1762937442675,-500.0,0.00039178,20]
[393706640,1762937442684,-500.0,0.00039178,20]
[393706641,1762937442694,-500.0,0.00039178,20]
[393706642,1762937442704,-500.0,0.00039178,20]
[393706643,1762937442714,-500.0,0.00039178,20]
[393706644,1762937442723,-500.0,0.00039178,20]
[393706645,1762937442733,-500.0,0.00039178,20]
[393706646,1762937442743,-500.0,0.00039178,20]
[393706647,1762937442752,-500.0,0.00039178,20]
[393706648,1762937442762,-150.88506829,0.00039178,30]
[393706649,1762937442771,-1000.0,0.00039178,120]
[393706650,1762937442781,-214.855079,0.00039178,20]
[393706651,1762937442791,-214.855079,0.00039178,20]
[393706652,1762937442800,-214.855079,0.00039178,20]
[393706653,1762937442809,-214.855079,0.00039178,20]
[393706654,1762937442819,-214.855079,0.00039178,20]
[393706655,1762937442829,-214.855079,0.00039178,20]
[393706656,1762937442838,-214.855079,0.00039178,20]
[393706657,1762937442847,-254.00577411,0.00039178,20]
[393706658,1762937442857,-163.727435,0.00039178,20]
[393706659,1762937442867,-161.357168,0.00039178,20]
[393706660,1762937442876,-163.727435,0.00039178,20]
[393706661,1762937442886,-161.357168,0.00039178,20]
[393706662,1762937442896,-500.0,0.00039178,20]
[393706663,1762937442906,-163.727435,0.00039178,20]
[393706664,1762937442915,-500.0,0.00039178,20]
[393706665,1762937442926,-500.0,0.00039178,20]
[393706666,1762937442935,-500.0,0.00039178,20]
[393706667,1762937442945,-500.0,0.00039178,20]
[393706668,1762937442954,-343.6702126,0.00039178,20]
[393706669,1762937442963,-161.357168,0.00039178,20]
[393706670,1762937442977,-163.727435,0.00039178,20]
[393706671,1762937442987,-161.357168,0.00039178,20]
[393706672,1762937442997,-152.6515,0.00039178,20]
[393706673,1762937443006,-163.727435,0.00039178,20]
[393706674,1762937443016,-161.357168,0.00039178,20]
[393706675,1762937443026,-152.6515,0.00039178,20]
[393706676,1762937443036,-163.727435,0.00039178,20]
[393706677,1762937443047,-161.357168,0.00039178,20]
[393706678,1762937443058,-161.357168,0.00039178,20]
[393706679,1762937443071,-155.110202,0.00039178,20]
[393706680,1762937443081,-152.6515,0.00039178,20]
[393706682,1762937443091,-500.0,0.00039178,20]
[393706683,1762937443101,-500.0,0.00039178,20]
[393706684,1762937443111,-155.110202,0.00039178,20]
[393706685,1762937443120,-152.6515,0.00039178,20]
[393706686,1762937443131,-155.110202,0.00039178,20]
[393706687,1762937443141,-152.6515,0.00039178,20]
[393706688,1762937443151,-152.6515,0.00039178,20]
[393706690,1762937443161,-152.6515,0.00039178,20]
[393706692,1762937443171,-915.909001,0.00039178,20]
[393706693,1762937443180,-915.909001,0.00039178,20]
[393706694,1762937443189,-915.909001,0.00039178,20]
[393706695,1762937443199,-915.909001,0.00039178,20]
[393706696,1762937443208,-915.909001,0.00039178,20]
[393706697,1762937443218,-915.909001,0.00039178,20]
[393706698,1762937443227,-915.909001,0.00039178,20]
[393706699,1762937443237,-500.0,0.00039178,20]
[393706700,1762937443246,-500.0,0.00039178,20]
[393706701,1762937443256,-500.0,0.00039178,20]
[393706702,1762937443266,-500.0,0.00039178,20]
[393706703,1762937443275,-500.0,0.00039178,20]
[393706706,1762937443284,-500.0,0.00039178,20]
[393706708,1762937443294,-500.0,0.00039178,20]
[393706709,1762937443304,-500.0,0.00039178,20]
[393706710,1762937443313,-500.0,0.00039178,20]
[393706711,1762937443323,-500.0,0.00039178,20]
[393706712,1762937443332,-500.0,0.00039178,20]
[393706713,1762937443341,-500.0,0.00039178,20]
[393706714,1762937443355,-500.0,0.00039178,20]
[393706715,1762937443365,-500.0,0.00039178,20]
[393706716,1762937443374,-500.0,0.00039178,20]
[393706717,1762937443384,-175.568013,0.00039178,20]
[393706718,1762937443394,-175.568013,0.00039178,20]
[393706719,1762937443403,-175.568013,0.00039178,20]
[393706720,1762937443485,-175.568013,0.00039178,20]
[393706721,1762937443495,-175.568013,0.00039178,20]
[393706722,1762937443505,-1214.74,0.00039178,20]
[393706723,1762937443514,-1214.74,0.00039178,20]
[393706724,1762937443523,-1214.74,0.00039178,20]
[393706725,1762937443532,-1214.74,0.00039178,20]
[393706726,1762937443541,-752.434338,0.00039178,20]
[393706727,1762937443551,-1214.74,0.00039178,20]
[393706728,1762937443560,-752.434338,0.00039178,20]
[393706729,1762937443569,-1214.74,0.00039178,20]
[393706730,1762937443583,-752.434338,0.00039178,20]
[393706731,1762937443592,-1214.74,0.00039178,20]
[393706732,1762937443601,-1214.74,0.00039178,20]
[393706733,1762937443611,-752.434338,0.00039178,20]
[393706734,1762937443622,-1214.74,0.00039178,20]
[393706735,1762937443631,-752.434338,0.00039178,20]
[393706736,1762937443641,-1214.74,0.00039178,20]
[393706737,1762937443650,-752.434338,0.00039178,20]
[393706738,1762937443661,-1214.74,0.00039178,20]